[Event "Titled Tuesday Blitz October 31 Early 2023"]
[White "Liyanage, Ranindu Dilshan"]
[Black "Herzog2012"]
[WhiteFideId "9915834"]
[WhiteElo "2776"]
[BlackElo "2555"]
[Result "1-0"]
[Round "3"]
[TimeControl "180+1"]
[Date "2023.10.31"]
[WhiteClock "0:00:04"]
[BlackClock "0:00:00"]
[Board "34"]

1. c4 {[%clk 0:03:00]}  Nf6 {[%clk 0:02:57]} 2. g3 {[%clk 0:02:59]}  e6 {[%clk 0:02:55]} 3. Bg2 {[%clk 0:02:59]}  Be7 {[%clk 0:02:56]} 4. Nf3 {[%clk 0:02:59]}  O-O {[%clk 0:02:55]} 5. O-O {[%clk 0:03:00]}  d5 {[%clk 0:02:55]} 6. b3 {[%clk 0:03:00]}  c5 {[%clk 0:02:55]} 7. Bb2 {[%clk 0:02:57]}  Nc6 {[%clk 0:02:53]} 8. cxd5 {[%clk 0:02:55]}  Nxd5 {[%clk 0:02:51]} 9. d4 {[%clk 0:02:50]}  cxd4 {[%clk 0:02:51]} 10. Nxd4 {[%clk 0:02:49]}  Bf6 {[%clk 0:02:47]} 11. Nxc6 {[%clk 0:02:43]}  bxc6 {[%clk 0:02:48]} 12. Qd2 {[%clk 0:02:39]}  Ba6 {[%clk 0:02:44]} 13. Rc1 {[%clk 0:02:20]}  Rc8 {[%clk 0:02:42]} 14. Na3 {[%clk 0:02:05]}  c5 {[%clk 0:02:30]} 15. Nc4 {[%clk 0:01:57]}  Bxc4 {[%clk 0:02:27]} 16. Rxc4 {[%clk 0:01:45]}  Nb6 {[%clk 0:02:23]} 17. Qxd8 {[%clk 0:01:42]}  Rfxd8 {[%clk 0:02:17]} 18. Bxf6 {[%clk 0:01:41]}  gxf6 {[%clk 0:02:18]} 19. Rc2 {[%clk 0:01:39]}  c4 {[%clk 0:02:14]} 20. bxc4 {[%clk 0:01:38]}  Rxc4 {[%clk 0:02:10]} 21. Rxc4 {[%clk 0:01:38]}  Nxc4 {[%clk 0:02:11]} 22. Rc1 {[%clk 0:01:38]}  Ne5 {[%clk 0:01:54]} 23. f4 {[%clk 0:01:34]}  Ng4 {[%clk 0:01:47]} 24. Bf3 {[%clk 0:01:31]}  f5 {[%clk 0:01:48]} 25. Rc7 {[%clk 0:01:23]}  Rd1+ {[%clk 0:01:31]} 26. Kg2 {[%clk 0:01:21]}  Ne3+ {[%clk 0:01:28]} 27. Kf2 {[%clk 0:01:21]}  Ng4+ {[%clk 0:01:13]} 28. Kg2 {[%clk 0:01:16]}  a5 {[%clk 0:01:05]} 29. Rc5 {[%clk 0:01:08]}  Ne3+ {[%clk 0:00:56]} 30. Kf2 {[%clk 0:01:04]}  Nf1 {[%clk 0:00:52]} 31. h3 {[%clk 0:00:33]}  Nd2 {[%clk 0:00:44]} 32. Rxa5 {[%clk 0:00:32]}  Nxf3 {[%clk 0:00:43]} 33. Kxf3 {[%clk 0:00:33]}  Rh1 {[%clk 0:00:42]} 34. Kg2 {[%clk 0:00:32]}  Re1 {[%clk 0:00:41]} 35. Kf2 {[%clk 0:00:31]}  Rh1 {[%clk 0:00:41]} 36. a4 {[%clk 0:00:26]}  Ra1 {[%clk 0:00:32]} 37. Ra8+ {[%clk 0:00:25]}  Kg7 {[%clk 0:00:32]} 38. a5 {[%clk 0:00:24]}  h5 {[%clk 0:00:32]} 39. a6 {[%clk 0:00:21]}  Ra3 {[%clk 0:00:30]} 40. e3 {[%clk 0:00:15]}  Ra2+ {[%clk 0:00:28]} 41. Kf3 {[%clk 0:00:14]}  Kh7 {[%clk 0:00:27]} 42. g4 {[%clk 0:00:14]}  fxg4+ {[%clk 0:00:24]} 43. hxg4 {[%clk 0:00:15]}  h4 {[%clk 0:00:23]} 44. g5 {[%clk 0:00:11]}  h3 {[%clk 0:00:21]} 45. Rc8 {[%clk 0:00:12]}  Rxa6 {[%clk 0:00:12]} 46. Rc1 {[%clk 0:00:12]}  Ra2 {[%clk 0:00:03]} 47. Rh1 {[%clk 0:00:12]}  h2 {[%clk 0:00:04]} 48. Kg3 {[%clk 0:00:12]}  Kg6 {[%clk 0:00:04]} 49. Rxh2 {[%clk 0:00:12]}  Ra1 {[%clk 0:00:05]} 50. Kf3 {[%clk 0:00:12]}  Rf1+ {[%clk 0:00:04]} 51. Ke4 {[%clk 0:00:12]}  Re1 {[%clk 0:00:05]} 52. Rh6+ {[%clk 0:00:12]}  Kg7 {[%clk 0:00:05]} 53. Rh2 {[%clk 0:00:12]}  Kg6 {[%clk 0:00:05]} 54. Rb2 {[%clk 0:00:12]}  e5 {[%clk 0:00:04]} 55. Rb6+ {[%clk 0:00:11]}  Kg7 {[%clk 0:00:04]} 56. f5 {[%clk 0:00:10]}  Rg1 {[%clk 0:00:03]} 57. g6 {[%clk 0:00:04]}  f6 {[%clk 0:00:03]} 58. Rb7+ {[%clk 0:00:04]}  Kg8 {[%clk 0:00:03]} 59. Kd5 {[%clk 0:00:04]}  Ra1 {[%clk 0:00:02]} 60. Rb8+ {[%clk 0:00:01]}  Kg7 {[%clk 0:00:01]} 61. Rb7+ {[%clk 0:00:02]}  Kg8 {[%clk 0:00:02]} 62. Rd7 {[%clk 0:00:03]}  Ra5+ {[%clk 0:00:01]} 63. Ke6 {[%clk 0:00:03]}  Ra6+ {[%clk 0:00:02]} 64. Rd6 {[%clk 0:00:04]}  Ra8 {[%clk 0:00:00]} 65. Kxf6 {[%clk 0:00:04]} 1-0


[Site "https://www.chess.com"]

[Event "Titled Tuesday Blitz October 31 Early 2023"]
[White "Sokolovsky, Yahli"]
[Black "Skatchkov, Valery"]
[WhiteFideId "2820242"]
[BlackFideId "24195812"]
[WhiteElo "2773"]
[BlackElo "2552"]
[Result "1-0"]
[Round "3"]
[TimeControl "180+1"]
[Date "2023.10.31"]
[WhiteClock "0:00:08"]
[BlackClock "0:00:21"]
[Board "35"]

1. b3 {[%clk 0:03:00]}  d5 {[%clk 0:02:57]} 2. Bb2 {[%clk 0:03:01]}  Bf5 {[%clk 0:02:57]} 3. e3 {[%clk 0:03:01]}  e6 {[%clk 0:02:57]} 4. d4 {[%clk 0:03:02]}  Nf6 {[%clk 0:02:57]} 5. Bd3 {[%clk 0:03:02]}  c6 {[%clk 0:02:52]} 6. Nf3 {[%clk 0:03:02]}  Bd6 {[%clk 0:02:52]} 7. Ne5 {[%clk 0:03:02]}  Nbd7 {[%clk 0:02:52]} 8. Nd2 {[%clk 0:02:59]}  Bxe5 {[%clk 0:02:42]} 9. dxe5 {[%clk 0:02:52]}  Ng4 {[%clk 0:02:42]} 10. Bxf5 {[%clk 0:02:05]}  exf5 {[%clk 0:02:42]} 11. Qf3 {[%clk 0:02:06]}  Qg5 {[%clk 0:02:24]} 12. Qf4 {[%clk 0:02:06]}  Qg6 {[%clk 0:01:39]} 13. Nf3 {[%clk 0:02:00]}  f6 {[%clk 0:01:23]} 14. exf6 {[%clk 0:01:19]}  Ngxf6 {[%clk 0:01:21]} 15. Nh4 {[%clk 0:01:19]}  Qg4 {[%clk 0:01:15]} 16. Nxf5 {[%clk 0:01:19]}  Qxf4 {[%clk 0:01:11]} 17. exf4 {[%clk 0:01:20]}  O-O-O {[%clk 0:01:11]} 18. O-O {[%clk 0:01:09]}  Kc7 {[%clk 0:01:04]} 19. Nxg7 {[%clk 0:01:07]}  Kd6 {[%clk 0:01:02]} 20. Rfe1 {[%clk 0:01:03]}  Rdf8 {[%clk 0:01:02]} 21. Be5+ {[%clk 0:00:44]}  Ke7 {[%clk 0:00:57]} 22. Nf5+ {[%clk 0:00:38]}  Kd8 {[%clk 0:00:56]} 23. Nd6 {[%clk 0:00:37]}  b6 {[%clk 0:00:54]} 24. c4 {[%clk 0:00:33]}  Rhg8 {[%clk 0:00:54]} 25. cxd5 {[%clk 0:00:30]}  Nxd5 {[%clk 0:00:54]} 26. Rac1 {[%clk 0:00:28]}  Nxe5 {[%clk 0:00:47]} 27. fxe5 {[%clk 0:00:26]}  Nf4 {[%clk 0:00:47]} 28. g3 {[%clk 0:00:06]}  Nd3 {[%clk 0:00:47]} 29. Ne4 {[%clk 0:00:03]}  Nxe1 {[%clk 0:00:44]} 30. Rxe1 {[%clk 0:00:04]}  Ke7 {[%clk 0:00:45]} 31. f4 {[%clk 0:00:04]}  h6 {[%clk 0:00:42]} 32. Nf6 {[%clk 0:00:04]}  Rh8 {[%clk 0:00:42]} 33. Kf2 {[%clk 0:00:03]}  Ke6 {[%clk 0:00:42]} 34. Ke3 {[%clk 0:00:04]}  Rd8 {[%clk 0:00:42]} 35. Ke4 {[%clk 0:00:04]}  Rd2 {[%clk 0:00:39]} 36. f5+ {[%clk 0:00:05]}  Ke7 {[%clk 0:00:39]} 37. Nh5 {[%clk 0:00:04]}  Rhd8 {[%clk 0:00:38]} 38. f6+ {[%clk 0:00:04]}  Kf7 {[%clk 0:00:39]} 39. Kf5 {[%clk 0:00:05]}  R8d5 {[%clk 0:00:35]} 40. Nf4 {[%clk 0:00:05]}  Ra5 {[%clk 0:00:36]} 41. b4 {[%clk 0:00:04]}  Rb5 {[%clk 0:00:21]} 42. a4 {[%clk 0:00:04]}  Rxb4 {[%clk 0:00:22]} 43. e6+ {[%clk 0:00:05]}  Ke8 {[%clk 0:00:20]} 44. f7+ {[%clk 0:00:05]}  Ke7 {[%clk 0:00:19]} 45. Ng6+ {[%clk 0:00:06]}  Kd6 {[%clk 0:00:20]} 46. f8=Q+ {[%clk 0:00:06]}  Kd5 {[%clk 0:00:21]} 47. Nf4+ {[%clk 0:00:06]}  Kc4 {[%clk 0:00:21]} 48. Re4+ {[%clk 0:00:07]}  Rd4 {[%clk 0:00:21]} 49. Rxd4+ {[%clk 0:00:07]}  Kxd4 {[%clk 0:00:21]} 50. Qxb4+ {[%clk 0:00:08]} 1-0


[Site "https://www.chess.com"]

[Event "Titled Tuesday Blitz October 31 Early 2023"]
[White "Korchmar, Vasiliy"]
[Black "Bazilius, Augustinas"]
[WhiteFideId "24131750"]
[BlackFideId "12832251"]
[WhiteElo "2768"]
[BlackElo "2539"]
[Result "1-0"]
[Round "3"]
[TimeControl "180+1"]
[Date "2023.10.31"]
[WhiteClock "0:00:27"]
[BlackClock "0:00:00"]
[Board "36"]

1. e4 {[%clk 0:03:00]}  c5 {[%clk 0:02:51]} 2. d4 {[%clk 0:03:00]}  cxd4 {[%clk 0:02:50]} 3. Qxd4 {[%clk 0:03:01]}  Nc6 {[%clk 0:02:50]} 4. Qd3 {[%clk 0:03:02]}  d6 {[%clk 0:02:49]} 5. Nc3 {[%clk 0:03:02]}  Nf6 {[%clk 0:02:49]} 6. Nf3 {[%clk 0:03:03]}  g6 {[%clk 0:02:50]} 7. Be2 {[%clk 0:03:04]}  Bg7 {[%clk 0:02:50]} 8. O-O {[%clk 0:03:04]}  O-O {[%clk 0:02:51]} 9. Nd5 {[%clk 0:03:04]}  Nd7 {[%clk 0:02:49]} 10. c3 {[%clk 0:03:04]}  a6 {[%clk 0:02:48]} 11. Bg5 {[%clk 0:03:02]}  b5 {[%clk 0:02:44]} 12. Rad1 {[%clk 0:03:01]}  Bb7 {[%clk 0:02:43]} 13. Rfe1 {[%clk 0:02:58]}  Nc5 {[%clk 0:02:26]} 14. Qe3 {[%clk 0:02:57]}  Ne6 {[%clk 0:02:20]} 15. Bh6 {[%clk 0:02:51]}  Re8 {[%clk 0:01:48]} 16. h4 {[%clk 0:02:51]}  Ne5 {[%clk 0:01:44]} 17. Nxe5 {[%clk 0:02:26]}  Bxe5 {[%clk 0:01:45]} 18. h5 {[%clk 0:02:26]}  Bxd5 {[%clk 0:01:26]} 19. exd5 {[%clk 0:02:25]}  Ng7 {[%clk 0:01:24]} 20. hxg6 {[%clk 0:02:20]}  hxg6 {[%clk 0:01:22]} 21. Bg4 {[%clk 0:02:19]}  Bf6 {[%clk 0:01:18]} 22. Rd3 {[%clk 0:02:11]}  Qa5 {[%clk 0:01:13]} 23. a3 {[%clk 0:02:10]}  Qa4 {[%clk 0:01:10]} 24. Qf3 {[%clk 0:02:00]}  Qb3 {[%clk 0:00:46]} 25. Re2 {[%clk 0:01:52]}  a5 {[%clk 0:00:44]} 26. g3 {[%clk 0:01:43]}  Rab8 {[%clk 0:00:24]} 27. Kg2 {[%clk 0:01:43]}  Qa2 {[%clk 0:00:22]} 28. Rde3 {[%clk 0:01:37]}  b4 {[%clk 0:00:18]} 29. cxb4 {[%clk 0:01:00]}  axb4 {[%clk 0:00:19]} 30. Bd7 {[%clk 0:01:00]}  Red8 {[%clk 0:00:16]} 31. Rxe7 {[%clk 0:01:00]}  Bxe7 {[%clk 0:00:06]} 32. Rxe7 {[%clk 0:01:01]}  Rf8 {[%clk 0:00:07]} 33. Qf6 {[%clk 0:00:37]}  Qxd5+ {[%clk 0:00:06]} 34. f3 {[%clk 0:00:37]}  Nh5 {[%clk 0:00:04]} 35. Qh4 {[%clk 0:00:34]}  Rbd8 {[%clk 0:00:02]} 36. g4 {[%clk 0:00:28]}  Ng7 {[%clk 0:00:02]} 37. Qf6 {[%clk 0:00:28]}  Ne8 {[%clk 0:00:00]} 38. Bxe8 {[%clk 0:00:27]} 1-0


[Site "https://www.chess.com"]

[Event "Titled Tuesday Blitz October 31 Early 2023"]
[White "Taher, Yoseph Theolifus"]
[Black "Willy, Stephen"]
[WhiteFideId "7105347"]
[BlackFideId "30981468"]
[WhiteElo "2765"]
[BlackElo "2502"]
[Result "1-0"]
[Round "3"]
[TimeControl "180+1"]
[Date "2023.10.31"]
[WhiteClock "0:02:23"]
[BlackClock "0:00:15"]
[Board "37"]

1. d4 {[%clk 0:03:00]}  d5 {[%clk 0:02:59]} 2. Nc3 {[%clk 0:03:01]}  Bf5 {[%clk 0:02:54]} 3. Bf4 {[%clk 0:03:00]}  e6 {[%clk 0:02:53]} 4. e3 {[%clk 0:03:01]}  Bd6 {[%clk 0:02:53]} 5. Bg3 {[%clk 0:02:58]}  Nf6 {[%clk 0:02:52]} 6. Bd3 {[%clk 0:02:58]}  Bg6 {[%clk 0:02:46]} 7. Nge2 {[%clk 0:02:58]}  Nc6 {[%clk 0:02:37]} 8. Qd2 {[%clk 0:02:58]}  e5 {[%clk 0:02:36]} 9. Bb5 {[%clk 0:02:52]}  e4 {[%clk 0:02:11]} 10. Bxc6+ {[%clk 0:02:51]}  bxc6 {[%clk 0:02:11]} 11. Na4 {[%clk 0:02:50]}  O-O {[%clk 0:02:07]} 12. Rc1 {[%clk 0:02:48]}  Rb8 {[%clk 0:02:06]} 13. O-O {[%clk 0:02:47]}  Nh5 {[%clk 0:01:52]} 14. c4 {[%clk 0:02:43]}  f5 {[%clk 0:01:38]} 15. b3 {[%clk 0:02:40]}  Nxg3 {[%clk 0:01:21]} 16. hxg3 {[%clk 0:02:37]}  Bf7 {[%clk 0:01:18]} 17. Qa5 {[%clk 0:02:35]}  Bb4 {[%clk 0:01:03]} 18. Qxa7 {[%clk 0:02:28]}  Qe7 {[%clk 0:00:43]} 19. cxd5 {[%clk 0:02:25]}  Ra8 {[%clk 0:00:40]} 20. Qb7 {[%clk 0:02:24]}  Bxd5 {[%clk 0:00:38]} 21. Nf4 {[%clk 0:02:24]}  Ba3 {[%clk 0:00:16]} 22. Nxd5 {[%clk 0:02:23]}  cxd5 {[%clk 0:00:15]} 23. Rxc7 {[%clk 0:02:23]} 1-0


[Site "https://www.chess.com"]

[Event "Titled Tuesday Blitz October 31 Early 2023"]
[White "Fecker, Noah"]
[Black "Santos Flores, Alberto"]
[WhiteFideId "1334263"]
[BlackFideId "3601234"]
[WhiteElo "2758"]
[BlackElo "2443"]
[Result "1-0"]
[Round "3"]
[TimeControl "180+1"]
[Date "2023.10.31"]
[WhiteClock "0:00:11"]
[BlackClock "0:00:00"]
[Board "38"]

1. e4 {[%clk 0:03:00]}  e6 {[%clk 0:02:59]} 2. d4 {[%clk 0:03:00]}  d5 {[%clk 0:02:59]} 3. Nd2 {[%clk 0:03:01]}  c5 {[%clk 0:02:59]} 4. Ngf3 {[%clk 0:02:59]}  cxd4 {[%clk 0:02:59]} 5. Nxd4 {[%clk 0:02:59]}  Nf6 {[%clk 0:03:00]} 6. exd5 {[%clk 0:02:56]}  Nxd5 {[%clk 0:03:00]} 7. a3 {[%clk 0:02:46]}  Be7 {[%clk 0:02:57]} 8. N2f3 {[%clk 0:02:41]}  O-O {[%clk 0:02:54]} 9. Bd3 {[%clk 0:02:41]}  Bf6 {[%clk 0:02:46]} 10. O-O {[%clk 0:02:40]}  a6 {[%clk 0:02:43]} 11. c4 {[%clk 0:02:37]}  Ne7 {[%clk 0:02:43]} 12. b4 {[%clk 0:02:22]}  Nbc6 {[%clk 0:02:42]} 13. Bb2 {[%clk 0:02:19]}  Nxd4 {[%clk 0:02:41]} 14. Nxd4 {[%clk 0:02:19]}  Qc7 {[%clk 0:02:21]} 15. Qc2 {[%clk 0:02:06]}  Ng6 {[%clk 0:02:09]} 16. Rfd1 {[%clk 0:01:57]}  Rd8 {[%clk 0:02:08]} 17. Be4 {[%clk 0:01:56]}  Bd7 {[%clk 0:02:05]} 18. c5 {[%clk 0:01:49]}  Rac8 {[%clk 0:01:32]} 19. Rac1 {[%clk 0:01:48]}  Be8 {[%clk 0:01:23]} 20. g3 {[%clk 0:01:36]}  b6 {[%clk 0:01:05]} 21. cxb6 {[%clk 0:01:23]}  Qxc2 {[%clk 0:00:21]} 22. Rxc2 {[%clk 0:01:11]}  Rxc2 {[%clk 0:00:21]} 23. Bxc2 {[%clk 0:01:12]}  Rb8 {[%clk 0:00:21]} 24. Bc1 {[%clk 0:00:56]}  Rxb6 {[%clk 0:00:21]} 25. Be3 {[%clk 0:00:56]}  Rb8 {[%clk 0:00:20]} 26. Bd3 {[%clk 0:00:51]}  Ra8 {[%clk 0:00:13]} 27. Nb3 {[%clk 0:00:42]}  Ne5 {[%clk 0:00:12]} 28. Be2 {[%clk 0:00:41]}  Bb5 {[%clk 0:00:11]} 29. Kf1 {[%clk 0:00:25]}  Bxe2+ {[%clk 0:00:10]} 30. Kxe2 {[%clk 0:00:26]}  Nc4 {[%clk 0:00:11]} 31. Bc1 {[%clk 0:00:25]}  a5 {[%clk 0:00:10]} 32. bxa5 {[%clk 0:00:17]}  Nxa5 {[%clk 0:00:09]} 33. Nxa5 {[%clk 0:00:16]}  Rxa5 {[%clk 0:00:10]} 34. Rd3 {[%clk 0:00:16]}  h5 {[%clk 0:00:09]} 35. h3 {[%clk 0:00:16]}  Ra4 {[%clk 0:00:09]} 36. Rb3 {[%clk 0:00:16]}  Kh7 {[%clk 0:00:07]} 37. Rb4 {[%clk 0:00:16]}  Ra6 {[%clk 0:00:06]} 38. a4 {[%clk 0:00:16]}  Kg6 {[%clk 0:00:06]} 39. Rc4 {[%clk 0:00:16]}  Kf5 {[%clk 0:00:05]} 40. Bd2 {[%clk 0:00:16]}  e5 {[%clk 0:00:05]} 41. a5 {[%clk 0:00:15]}  Ke6 {[%clk 0:00:05]} 42. Rb4 {[%clk 0:00:14]}  Kd5 {[%clk 0:00:05]} 43. Kd3 {[%clk 0:00:13]}  Kc6 {[%clk 0:00:03]} 44. Rc4+ {[%clk 0:00:12]}  Kd5 {[%clk 0:00:03]} 45. Rc7 {[%clk 0:00:11]}  Ke6 {[%clk 0:00:01]} 46. Rb7 {[%clk 0:00:12]}  Bd8 {[%clk 0:00:01]} 47. Rb5 {[%clk 0:00:11]}  Bc7 {[%clk 0:00:00]} 48. Ke4 {[%clk 0:00:11]} 1-0


[Site "https://www.chess.com"]

[Event "Titled Tuesday Blitz October 31 Early 2023"]
[White "Zhao, Erick"]
[Black "Soumya, Swaminathan"]
[WhiteFideId "30946930"]
[BlackFideId "5016193"]
[WhiteElo "2743"]
[BlackElo "2352"]
[Result "1-0"]
[Round "3"]
[TimeControl "180+1"]
[Date "2023.10.31"]
[WhiteClock "0:01:49"]
[BlackClock "0:00:03"]
[Board "40"]

1. e4 {[%clk 0:03:00]}  c5 {[%clk 0:02:59]} 2. Nf3 {[%clk 0:03:00]}  Nc6 {[%clk 0:03:00]} 3. Bb5 {[%clk 0:03:01]}  g6 {[%clk 0:02:59]} 4. O-O {[%clk 0:03:01]}  Bg7 {[%clk 0:02:59]} 5. c3 {[%clk 0:03:01]}  Nf6 {[%clk 0:01:57]} 6. d4 {[%clk 0:03:00]}  d5 {[%clk 0:01:57]} 7. Ne5 {[%clk 0:02:55]}  Qb6 {[%clk 0:01:48]} 8. exd5 {[%clk 0:02:54]}  Qxb5 {[%clk 0:01:35]} 9. Na3 {[%clk 0:02:47]}  Qb6 {[%clk 0:01:14]} 10. dxc6 {[%clk 0:02:43]}  cxd4 {[%clk 0:01:07]} 11. Nac4 {[%clk 0:02:38]}  Qc7 {[%clk 0:01:03]} 12. cxb7 {[%clk 0:02:13]}  Bxb7 {[%clk 0:01:03]} 13. cxd4 {[%clk 0:02:12]}  O-O {[%clk 0:00:58]} 14. Bf4 {[%clk 0:02:11]}  Nh5 {[%clk 0:00:55]} 15. Be3 {[%clk 0:02:08]}  Rad8 {[%clk 0:00:47]} 16. Rc1 {[%clk 0:02:07]}  Bd5 {[%clk 0:00:35]} 17. b3 {[%clk 0:02:03]}  f6 {[%clk 0:00:17]} 18. Nd3 {[%clk 0:01:59]}  f5 {[%clk 0:00:07]} 19. Nce5 {[%clk 0:01:51]}  Qb7 {[%clk 0:00:07]} 20. f3 {[%clk 0:01:50]}  f4 {[%clk 0:00:07]} 21. Nc5 {[%clk 0:01:49]}  Qa8 {[%clk 0:00:06]} 22. Bf2 {[%clk 0:01:49]}  Bxe5 {[%clk 0:00:06]} 23. dxe5 {[%clk 0:01:50]}  Bxb3 {[%clk 0:00:03]} 24. Qxb3+ {[%clk 0:01:49]} 1-0


[Site "https://www.chess.com"]

[Event "Titled Tuesday Blitz October 31 Early 2023"]
[White "Zhigalko, Sergei"]
[Black "JuniorJumper"]
[WhiteFideId "13502956"]
[WhiteElo "2961"]
[BlackElo "2616"]
[Result "1-0"]
[Round "3"]
[TimeControl "180+1"]
[Date "2023.10.31"]
[WhiteClock "0:00:43"]
[BlackClock "0:00:00"]
[Board "49"]

1. e4 {[%clk 0:03:00]}  e5 {[%clk 0:02:59]} 2. Nf3 {[%clk 0:03:01]}  Nc6 {[%clk 0:02:59]} 3. Bc4 {[%clk 0:03:01]}  Nf6 {[%clk 0:02:59]} 4. d3 {[%clk 0:03:01]}  Be7 {[%clk 0:03:00]} 5. O-O {[%clk 0:03:01]}  O-O {[%clk 0:03:00]} 6. Nbd2 {[%clk 0:03:02]}  d6 {[%clk 0:03:00]} 7. c3 {[%clk 0:03:02]}  Be6 {[%clk 0:03:00]} 8. Bb5 {[%clk 0:02:57]}  h6 {[%clk 0:02:45]} 9. Re1 {[%clk 0:02:57]}  Nh7 {[%clk 0:02:28]} 10. d4 {[%clk 0:02:56]}  exd4 {[%clk 0:02:27]} 11. cxd4 {[%clk 0:02:57]}  d5 {[%clk 0:02:28]} 12. e5 {[%clk 0:02:41]}  Ng5 {[%clk 0:02:27]} 13. Nxg5 {[%clk 0:02:33]}  Bxg5 {[%clk 0:02:28]} 14. Bxc6 {[%clk 0:02:34]}  bxc6 {[%clk 0:02:29]} 15. Nb3 {[%clk 0:02:34]}  Be7 {[%clk 0:02:09]} 16. Bd2 {[%clk 0:02:31]}  Qd7 {[%clk 0:01:59]} 17. Rc1 {[%clk 0:02:31]}  f6 {[%clk 0:01:56]} 18. Qe2 {[%clk 0:02:24]}  Bf5 {[%clk 0:01:51]} 19. e6 {[%clk 0:02:12]}  Qe8 {[%clk 0:01:40]} 20. Qa6 {[%clk 0:01:51]}  Bd6 {[%clk 0:01:28]} 21. Qxc6 {[%clk 0:01:46]}  Bxe6 {[%clk 0:01:25]} 22. Ba5 {[%clk 0:01:17]}  Qh5 {[%clk 0:00:45]} 23. h3 {[%clk 0:01:06]}  Bxh3 {[%clk 0:00:14]} 24. gxh3 {[%clk 0:01:05]}  Qg5+ {[%clk 0:00:14]} 25. Kf1 {[%clk 0:01:04]}  Qf5 {[%clk 0:00:14]} 26. Rc3 {[%clk 0:01:00]}  Rac8 {[%clk 0:00:03]} 27. Rce3 {[%clk 0:00:50]}  Kh7 {[%clk 0:00:02]} 28. Nc5 {[%clk 0:00:46]}  Bxc5 {[%clk 0:00:02]} 29. Qxc5 {[%clk 0:00:47]}  Qg5 {[%clk 0:00:00]} 30. Bb4 {[%clk 0:00:43]} 1-0


[Site "https://www.chess.com"]

[Event "Titled Tuesday Blitz October 31 Early 2023"]
[White "Drygalov, Sergey"]
[Black "Leyva Proenza, Richard"]
[WhiteFideId "24171743"]
[BlackFideId "3500985"]
[WhiteElo "2955"]
[BlackElo "2613"]
[Result "1-0"]
[Round "3"]
[TimeControl "180+1"]
[Date "2023.10.31"]
[WhiteClock "0:00:06"]
[BlackClock "0:00:00"]
[Board "50"]

1. d4 {[%clk 0:03:00]}  Nf6 {[%clk 0:02:57]} 2. c4 {[%clk 0:03:00]}  g6 {[%clk 0:02:54]} 3. Nc3 {[%clk 0:03:00]}  Bg7 {[%clk 0:02:53]} 4. e4 {[%clk 0:03:00]}  d6 {[%clk 0:02:53]} 5. Nf3 {[%clk 0:03:00]}  O-O {[%clk 0:02:52]} 6. Be2 {[%clk 0:03:01]}  Nbd7 {[%clk 0:02:51]} 7. O-O {[%clk 0:02:57]}  e5 {[%clk 0:02:51]} 8. Be3 {[%clk 0:02:57]}  h6 {[%clk 0:02:46]} 9. d5 {[%clk 0:02:41]}  Ng4 {[%clk 0:02:43]} 10. Bc1 {[%clk 0:02:41]}  f5 {[%clk 0:02:32]} 11. exf5 {[%clk 0:02:32]}  gxf5 {[%clk 0:02:31]} 12. h3 {[%clk 0:02:32]}  Ngf6 {[%clk 0:02:32]} 13. Nh4 {[%clk 0:02:32]}  Nc5 {[%clk 0:02:30]} 14. b4 {[%clk 0:02:32]}  Nfe4 {[%clk 0:02:24]} 15. Nxe4 {[%clk 0:02:16]}  Nxe4 {[%clk 0:02:24]} 16. Nf3 {[%clk 0:02:17]}  Nc3 {[%clk 0:02:20]} 17. Qc2 {[%clk 0:02:06]}  Nxe2+ {[%clk 0:02:20]} 18. Qxe2 {[%clk 0:02:07]}  e4 {[%clk 0:02:20]} 19. Rb1 {[%clk 0:02:07]}  exf3 {[%clk 0:02:20]} 20. Qxf3 {[%clk 0:02:07]}  Bd7 {[%clk 0:02:16]} 21. Bf4 {[%clk 0:02:07]}  Qf6 {[%clk 0:02:15]} 22. c5 {[%clk 0:02:06]}  Bb5 {[%clk 0:02:12]} 23. Rfe1 {[%clk 0:02:06]}  Rae8 {[%clk 0:02:11]} 24. Rbc1 {[%clk 0:02:05]}  Re4 {[%clk 0:01:58]} 25. cxd6 {[%clk 0:01:45]}  cxd6 {[%clk 0:01:57]} 26. Re3 {[%clk 0:01:45]}  Rfe8 {[%clk 0:01:51]} 27. Rc7 {[%clk 0:01:45]}  Rxe3 {[%clk 0:01:42]} 28. Bxe3 {[%clk 0:01:43]}  f4 {[%clk 0:01:09]} 29. Bxf4 {[%clk 0:01:33]}  Rf8 {[%clk 0:01:02]} 30. g3 {[%clk 0:01:21]}  Rf7 {[%clk 0:00:42]} 31. Rc8+ {[%clk 0:01:16]}  Kh7 {[%clk 0:00:42]} 32. Rb8 {[%clk 0:00:54]}  Qg6 {[%clk 0:00:38]} 33. Qe3 {[%clk 0:00:46]}  Bd3 {[%clk 0:00:31]} 34. Qe8 {[%clk 0:00:44]}  Qf5 {[%clk 0:00:31]} 35. Qg8+ {[%clk 0:00:39]}  Kg6 {[%clk 0:00:31]} 36. Rd8 {[%clk 0:00:40]}  Rf6 {[%clk 0:00:15]} 37. Qe8+ {[%clk 0:00:39]}  Kh7 {[%clk 0:00:16]} 38. Qg8+ {[%clk 0:00:40]}  Kg6 {[%clk 0:00:16]} 39. Qe8+ {[%clk 0:00:22]}  Kh7 {[%clk 0:00:16]} 40. Rd7 {[%clk 0:00:21]}  Qg6 {[%clk 0:00:15]} 41. Qxg6+ {[%clk 0:00:18]}  Kxg6 {[%clk 0:00:15]} 42. Rxb7 {[%clk 0:00:19]}  a6 {[%clk 0:00:14]} 43. a4 {[%clk 0:00:19]}  Be4 {[%clk 0:00:14]} 44. b5 {[%clk 0:00:17]}  axb5 {[%clk 0:00:14]} 45. Rxb5 {[%clk 0:00:17]}  Rf5 {[%clk 0:00:14]} 46. a5 {[%clk 0:00:14]}  Rxd5 {[%clk 0:00:14]} 47. Rxd5 {[%clk 0:00:14]}  Bxd5 {[%clk 0:00:15]} 48. Bxd6 {[%clk 0:00:14]}  Bc3 {[%clk 0:00:13]} 49. a6 {[%clk 0:00:14]}  Bd4 {[%clk 0:00:12]} 50. Bb8 {[%clk 0:00:12]}  h5 {[%clk 0:00:12]} 51. a7 {[%clk 0:00:11]}  Bf3 {[%clk 0:00:11]} 52. Kf1 {[%clk 0:00:09]}  Kf5 {[%clk 0:00:11]} 53. Kg1 {[%clk 0:00:08]}  Ke6 {[%clk 0:00:11]} 54. Kf1 {[%clk 0:00:07]}  Kd7 {[%clk 0:00:12]} 55. g4 {[%clk 0:00:07]}  h4 {[%clk 0:00:11]} 56. Kg1 {[%clk 0:00:05]}  Kc8 {[%clk 0:00:11]} 57. Kf1 {[%clk 0:00:05]}  Kb7 {[%clk 0:00:11]} 58. g5 {[%clk 0:00:05]}  Bxa7 {[%clk 0:00:09]} 59. Bxa7 {[%clk 0:00:04]}  Kxa7 {[%clk 0:00:10]} 60. g6 {[%clk 0:00:05]}  Bd5 {[%clk 0:00:10]} 61. Ke2 {[%clk 0:00:04]}  Kb7 {[%clk 0:00:10]} 62. Ke3 {[%clk 0:00:05]}  Kc7 {[%clk 0:00:11]} 63. Kf4 {[%clk 0:00:06]}  Kd6 {[%clk 0:00:11]} 64. Kg5 {[%clk 0:00:06]}  Ke5 {[%clk 0:00:10]} 65. f4+ {[%clk 0:00:06]}  Kd6 {[%clk 0:00:09]} 66. f5 {[%clk 0:00:05]}  Ke7 {[%clk 0:00:08]} 67. f6+ {[%clk 0:00:06]}  Kf8 {[%clk 0:00:09]} 68. Kxh4 {[%clk 0:00:06]}  Be4 {[%clk 0:00:08]} 69. Kg5 {[%clk 0:00:07]}  Bf3 {[%clk 0:00:08]} 70. h4 {[%clk 0:00:07]}  Be2 {[%clk 0:00:07]} 71. h5 {[%clk 0:00:07]}  Kg8 {[%clk 0:00:07]} 72. h6 {[%clk 0:00:08]}  Bc4 {[%clk 0:00:06]} 73. h7+ {[%clk 0:00:06]}  Kh8 {[%clk 0:00:00]} 74. Kh6 {[%clk 0:00:06]} 1-0


[Site "https://www.chess.com"]